bitfinex/quotes_SOLUSD_20250306
["timestamp","ask_amount","ask_price","bid_price","bid_amount"]
[1741289122883,18.45874238,143.26,143.22,7.15416157]
[1741289123286,18.45874238,143.25,143.22,0.17216157]
[1741289123928,18.45874238,143.25,143.22,7.15426157]
[1741289124428,18.45874238,143.25,143.22,0.17216157]
[1741289124636,18.45874238,143.25,143.22,215.15436157]
[1741289126023,18.45874238,143.25,143.22,527.15436157]
[1741289126231,18.45874238,143.25,143.22,520.17216157]
[1741289127503,18.45874238,143.25,143.22,527.15436157]
[1741289128528,18.45874238,143.25,143.22,520.17216157]
[1741289129510,18.45874238,143.25,143.22,527.15436157]
[1741289129720,18.45874238,143.26,143.22,527.15436157]
[1741289130331,18.45874238,143.25,143.22,527.15436157]
[1741289131135,18.45874238,143.25,143.22,520.17216157]
[1741289131638,18.45874238,143.25,143.22,527.15436157]
[1741289131942,18.45874238,143.25,143.22,520.17216157]
[1741289132919,18.45874238,143.24,143.22,520.03]
[1741289133120,18.45874238,143.23,143.22,208.03]
[1741289133332,18.45874238,143.23,143.22,208.17216157]
[1741289133529,18.45874238,143.23,143.22,208.03]
[1741289134216,18.45874238,143.23,143.22,208.17216157]
[1741289134541,11.82910106,143.23,143.22,208.17216157]
[1741289135234,11.82910106,143.23,143.22,0.17216157]
[1741289135618,83.83276126,143.27,143.23,0.14216157]
[1741289135619,6.9803,143.26,143.23,0.14216157]
[1741289136017,6.9803,143.26,143.22,0.03]
[1741289136359,6.98,143.27,143.23,0.14216157]
[1741289136646,6.3257,143.28,143.23,0.14216157]
[1741289136842,11.82910106,143.25,143.23,0.14216157]
[1741289137416,11.82910106,143.24,143.23,0.14216157]
[1741289137822,11.82910106,143.25,143.23,0.14216157]
[1741289138023,11.82910106,143.26,143.23,7.12376157]
[1741289138419,13.3051,143.28,143.23,0.14216157]
[1741289138626,18.47756852,143.24,143.23,0.14216157]
[1741289139748,18.47756852,143.25,143.23,7.12386157]
[1741289140844,18.47756852,143.26,143.23,7.12386157]
[1741289141536,0.033,143.3,143.23,215.12386157]
[1741289141741,18.47756852,143.28,143.23,215.12386157]
[1741289141917,18.47756852,143.28,143.23,232.57826157]
[1741289142654,18.47756852,143.27,143.23,215.12386157]
[1741289143962,18.47756852,143.28,143.23,215.12386157]
[1741289144616,18.47756852,143.28,143.25,0.14216157]
[1741289144817,18.47756852,143.29,143.25,0.14216157]
[1741289146051,18.47756852,143.29,143.27,0.14216157]
[1741289146256,0.033,143.3,143.27,208.14216157]
[1741289146461,0.033,143.3,143.29,18.90405323]
[1741289146836,0.033,143.3,143.29,20.40445323]
[1741289147166,0.033,143.3,143.29,228.40445323]
[1741289147849,0.033,143.3,143.29,209.92688471]
[1741289148047,0.033,143.3,143.29,520.14216157]
[1741289148364,0.033,143.3,143.29,394.24216157]
[1741289149277,0.033,143.3,143.29,401.22096157]
[1741289149449,0.033,143.3,143.29,401.50528471]
[1741289149852,0.033,143.3,143.29,419.98285323]
[1741289151455,0.033,143.3,143.29,545.88285323]
[1741289151984,20.64842971,143.35,143.33,0.14216157]
[1741289152185,0.033,143.36,143.35,0.14216157]
[1741289152346,0.033,143.36,143.35,248.07587983]
[1741289152547,0.033,143.36,143.35,246.90405323]
[1741289152968,0.033,143.36,143.35,248.56285323]
[1741289153173,0.033,143.37,143.36,0.42648471]
[1741289153478,0.033,143.37,143.36,226.90405323]
[1741289153845,0.033,143.37,143.36,233.87945323]
[1741289154046,0.033,143.37,143.36,252.35702175]
[1741289155246,0.033,143.37,143.36,564.35702175]
[1741289157846,0.033,143.38,143.37,0.14216157]
[1741289158054,0.033,143.38,143.37,20.0743476]
[1741289159465,0.033,143.38,143.37,27.0492476]
[1741289161377,0.033,143.38,143.37,320.57167908]
[1741289161566,0.033,143.38,143.37,337.87895323]
[1741289162454,0.033,143.38,143.37,318.76432314]
[1741289162660,0.033,143.38,143.37,337.24189166]
[1741289162859,0.033,143.38,143.37,337.38405323]
[1741289163375,0.033,143.38,143.37,545.38405323]
[1741289163573,0.033,143.38,143.37,520.42648471]
[1741289163883,0.033,143.38,143.37,526.90648471]
[1741289164864,0.033,143.38,143.37,552.35895323]
[1741289166166,0.033,143.38,143.37,526.90648471]
[1741289166983,0.033,143.38,143.37,545.38405323]
[1741289167980,0.033,143.38,143.37,526.90648471]
[1741289168389,0.033,143.38,143.37,520.0]
[1741289168562,18.51056852,143.38,143.37,82.1]
[1741289168961,18.51056852,143.38,143.37,82.24216157]
[1741289169475,25.48496852,143.38,143.37,82.24216157]
[1741289171797,25.48496852,143.38,143.37,0.14216157]
[1741289172469,61.39863704,143.38,143.31,208.0]
[1741289172669,18.47756852,143.33,143.32,0.14216157]
[1741289172882,18.47756852,143.33,143.32,82.24216157]
[1741289173703,25.45446852,143.33,143.32,82.1]
[1741289174199,25.45446852,143.33,143.32,82.24216157]
[1741289174373,31.78496852,143.33,143.32,82.1]
[1741289174574,31.78496852,143.33,143.32,82.24216157]
[1741289177784,24.80806852,143.33,143.32,82.24216157]
[1741289178092,24.80806852,143.33,143.32,0.14216157]
[1741289181495,31.78496852,143.33,143.32,0.14216157]
[1741289182481,24.80806852,143.33,143.32,0.14216157]
[1741289182671,31.78496852,143.33,143.32,0.14216157]
[1741289185597,24.80806852,143.33,143.32,0.14216157]
[1741289185986,6.3305,143.33,143.32,0.14216157]
[1741289186191,24.80806852,143.33,143.32,0.14216157]
[1741289186595,18.47756852,143.34,143.33,0.14216157]
[1741289186788,18.47756852,143.34,143.32,0.14216157]
[1741289187609,18.47756852,143.34,143.31,0.17216157]
[1741289187990,18.47756852,143.33,143.31,0.17216157]
[1741289188190,7.9101,143.37,143.31,0.45648471]
[1741289188393,18.47756852,143.36,143.31,208.45648471]
[1741289188713,18.47756852,143.34,143.31,208.45648471]
[1741289189311,18.47756852,143.33,143.32,312.14216157]
[1741289190699,18.47756852,143.34,143.33,0.14216157]
[1741289191230,25.45396852,143.34,143.32,0.14216157]
[1741289192013,18.47756852,143.34,143.32,0.14216157]
[1741289192901,18.47756852,143.34,143.32,82.24216157]
[1741289193504,25.45396852,143.34,143.32,82.24216157]
[1741289193706,18.47756852,143.33,143.32,82.24216157]
[1741289194009,18.47756852,143.33,143.32,394.24216157]
[1741289194506,18.47756852,143.35,143.32,394.24216157]
[1741289194811,18.47756852,143.36,143.32,401.21946157]
[1741289195393,24.89606852,143.37,143.32,401.21946157]
[1741289195599,21.6537443,143.36,143.32,233.59703009]
[1741289195799,21.6537443,143.36,143.33,0.28432314]
[1741289196018,0.033,143.37,143.33,0.28432314]
[1741289196218,0.033,143.37,143.34,0.14216157]
[1741289196999,18.51056852,143.37,143.34,0.14216157]
[1741289197917,18.47756852,143.35,143.33,208.0]
[1741289198216,18.47756852,143.34,143.33,208.14216157]
[1741289198403,18.47756852,143.35,143.34,0.14216157]
[1741289198814,18.47756852,143.35,143.31,208.03]
[1741289199027,18.47756852,143.35,143.32,0.14216157]
[1741289200236,0.033,143.37,143.32,0.14216157]
[1741289200532,18.47756852,143.35,143.32,82.24216157]
[1741289200731,18.47756852,143.34,143.32,82.24216157]
[1741289201139,18.47756852,143.35,143.32,82.24216157]
[1741289201715,18.47756852,143.35,143.32,394.24216157]
[1741289202821,25.45356852,143.35,143.32,82.24216157]
[1741289203027,25.45316852,143.36,143.32,82.24216157]
[1741289203426,0.033,143.37,143.33,0.28432314]
[1741289203744,0.033,143.37,143.34,0.14216157]
[1741289203939,0.033,143.37,143.36,0.14216157]
[1741289204124,0.033,143.37,143.36,82.24216157]
[1741289205841,0.033,143.37,143.36,394.24216157]
[1741289207065,0.033,143.37,143.36,520.42648471]
[1741289207365,0.033,143.37,143.36,215.40188471]
[1741289209140,0.033,143.37,143.36,208.42648471]
[1741289210223,0.033,143.37,143.36,520.42648471]
[1741289210843,0.033,143.37,143.36,527.40188471]
[1741289211458,0.033,143.37,143.36,545.87945323]
[1741289216543,0.033,143.37,143.36,539.19623798]
[1741289220267,0.033,143.37,143.36,520.42648471]
[1741289220474,11.82735327,143.37,143.36,394.1]
[1741289220649,11.82735327,143.37,143.36,82.1]
[1741289220966,0.033,143.37,143.36,82.24216157]
[1741289221171,0.033,143.37,143.36,82.1]
[1741289222480,0.033,143.37,143.36,82.24216157]
[1741289222668,11.82735327,143.37,143.36,82.24216157]
[1741289222876,0.033,143.37,143.36,82.24216157]
[1741289223066,11.82735327,143.37,143.36,82.24216157]
[1741289223895,11.82735327,143.37,143.36,82.1]
[1741289224060,59.00476635,143.37,143.32,82.1]
[1741289224263,11.79435327,143.33,143.32,82.24216157]
[1741289224559,18.77125327,143.33,143.32,82.24216157]
[1741289225185,18.77125327,143.33,143.32,82.1]
[1741289225365,18.77125327,143.33,143.32,82.24216157]
[1741289225989,6.1778,143.32,143.31,0.03]
[1741289226161,17.97215327,143.32,143.31,0.03]
[1741289226786,31.61458114,143.32,143.31,0.03]
[1741289228493,33.17608114,143.32,143.31,0.03]
[1741289228995,35.0083174,143.32,143.31,0.0001]
[1741289229372,70.91119854,143.32,143.28,0.03]
[1741289229571,43.36276228,143.29,143.28,0.0001]
[1741289229885,1.5161,143.28,143.26,5.19e-05]
[1741289230067,26.75240035,143.27,143.26,5.19e-05]
[1741289230265,32.33605591,143.27,143.26,5.19e-05]
[1741289230465,24.431,143.26,143.22,0.03]
[1741289230665,36.91896228,143.23,143.22,0.03]
[1741289231087,43.53726228,143.23,143.22,0.03]
[1741289231382,45.11276228,143.23,143.22,0.03]
[1741289231590,45.11276228,143.23,143.21,0.03]
[1741289231798,45.21252554,143.22,143.21,0.03]
[1741289232371,45.49684868,143.22,143.21,0.03]
[1741289232688,45.49684868,143.22,143.19,0.03]
[1741289232689,20.0,143.19,143.14,0.03]
[1741289232866,36.91896228,143.15,143.14,0.03]
[1741289233187,43.05366228,143.15,143.14,0.03]
[1741289234065,50.03926228,143.15,143.14,0.03]
[1741289234886,51.87376111,143.15,143.14,0.03]
[1741289235860,133.87376111,143.15,143.14,0.03]
[1741289236967,132.03926228,143.15,143.14,0.03]
[1741289237171,6.2311,143.19,143.15,0.14216157]
[1741289237477,18.45948114,143.16,143.15,0.14216157]
[1741289237873,6.2311,143.19,143.15,0.14216157]
[1741289238079,24.69058114,143.19,143.15,89.22766157]
[1741289238271,18.45948114,143.19,143.15,89.22766157]
[1741289238478,18.45948114,143.18,143.15,89.22766157]
[1741289239972,18.45948114,143.18,143.15,82.24216157]
[1741289240314,18.45948114,143.17,143.15,82.24216157]
[1741289240492,18.45948114,143.16,143.15,82.24216157]
[1741289241397,18.45948114,143.16,143.15,82.1]
[1741289241572,18.45948114,143.16,143.15,82.24216157]
[1741289242281,20.0,143.17,143.15,82.24216157]
[1741289242493,18.45948114,143.16,143.15,82.24216157]
[1741289242689,18.45948114,143.17,143.16,0.14216157]
[1741289244401,18.45948114,143.17,143.16,312.14216157]
[1741289244581,18.45948114,143.17,143.16,0.14216157]
[1741289245315,25.44418114,143.17,143.16,0.14216157]
[1741289246715,25.44418114,143.17,143.15,82.1]
[1741289246926,18.45948114,143.16,143.15,82.1]
[1741289247225,18.45948114,143.16,143.15,82.24216157]
[1741289247690,18.45948114,143.17,143.16,0.14216157]
[1741289248115,25.44418114,143.17,143.16,0.14216157]
[1741289248307,18.45948114,143.17,143.16,0.14216157]
[1741289249126,18.45948114,143.17,143.16,0.14216157]
[1741289249806,25.44418114,143.17,143.16,0.14216157]
[1741289250006,25.47718114,143.17,143.16,0.14216157]
[1741289251525,43.93666228,143.17,143.15,82.1]
[1741289251719,36.91896228,143.16,143.15,82.24216157]
[1741289251904,18.45948114,143.16,143.15,82.24216157]
[1741289252313,25.44458114,143.16,143.15,82.24216157]
[1741289255116,25.44458114,143.16,143.15,0.14216157]
[1741289256296,0.033,143.17,143.16,0.14216157]
[1741289256513,0.033,143.17,143.16,25.58674271]
[1741289256710,0.033,143.17,143.16,233.87106585]
[1741289257526,0.033,143.17,143.16,233.58674271]
[1741289257732,0.033,143.17,143.16,89.22726157]
[1741289258026,0.033,143.17,143.16,107.68674271]
[1741289258627,0.033,143.17,143.16,89.22726157]
[1741289258809,0.033,143.17,143.16,107.97106585]
[1741289259440,0.033,143.17,143.16,401.51158471]
[1741289259614,0.033,143.17,143.16,419.68674271]
[1741289259817,0.033,143.17,143.16,419.97106585]
[1741289261426,0.033,143.17,143.16,545.87106585]
[1741289263932,24.59988114,143.26,143.2,18.60164271]
[1741289264121,24.59988114,143.26,143.2,100.70164271]
[1741289265539,24.59988114,143.26,143.22,0.14216157]
[1741289266237,18.45948114,143.24,143.21,0.14216157]
[1741289266930,18.45948114,143.23,143.18,88.58]
[1741289269958,18.45948114,143.26,143.21,82.24216157]
[1741289270137,18.45948114,143.26,143.21,89.22446157]
[1741289270326,18.45948114,143.25,143.21,82.24216157]
[1741289271227,18.45948114,143.25,143.21,394.24216157]
[1741289271728,25.44058114,143.25,143.21,394.24216157]
[1741289272060,18.45948114,143.24,143.21,394.24216157]
[1741289272230,18.45948114,143.22,143.21,82.1]
[1741289272551,18.45948114,143.22,143.18,208.0]
[1741289272764,18.45948114,143.22,143.19,0.14216157]
[1741289273061,18.45948114,143.22,143.18,82.1]
[1741289273661,25.44178114,143.22,143.19,0.14216157]
[1741289274025,18.45948114,143.2,143.15,89.1155]
[1741289274234,18.45948114,143.21,143.16,0.14216157]
[1741289274439,20.91696605,143.24,143.16,0.14216157]
[1741289274440,6.9813,143.24,143.19,0.14216157]
[1741289274640,6.9813,143.24,143.19,82.24216157]
[1741289274641,25.44078114,143.24,143.19,82.24216157]
[1741289274855,18.45948114,143.23,143.19,82.24216157]
[1741289275172,18.45948114,143.23,143.19,394.24216157]
[1741289275343,18.45948114,143.24,143.19,394.24216157]
[1741289275732,18.49248114,143.25,143.21,0.14216157]
[1741289275935,18.45948114,143.23,143.2,0.14216157]
[1741289276561,18.45948114,143.24,143.2,0.14216157]
[1741289277141,25.47328114,143.25,143.2,7.12536157]
[1741289277734,18.49248114,143.25,143.2,7.12536157]
[1741289278037,25.47338114,143.25,143.2,7.12536157]
[1741289278228,18.45948114,143.24,143.2,0.14216157]
[1741289278432,18.45948114,143.24,143.2,7.12526157]
[1741289278750,25.47338114,143.25,143.2,7.12526157]
[1741289279053,18.49248114,143.25,143.2,89.22526157]
[1741289279456,25.47328114,143.25,143.2,89.22526157]
[1741289279948,0.033,143.25,143.2,89.22526157]
[1741289280154,0.033,143.25,143.22,0.14216157]
[1741289280459,18.45948114,143.24,143.22,0.14216157]
[1741289281052,25.44118114,143.23,143.22,0.14216157]
[1741289281632,25.44118114,143.23,143.15,17.4941]
[1741289281633,25.44118114,143.23,143.16,82.1]
[1741289281835,18.45948114,143.17,143.16,82.1]
[1741289282033,18.45948114,143.17,143.15,0.03]
[1741289282436,18.45948114,143.18,143.15,0.17216157]
[1741289282836,18.45948114,143.18,143.15,0.03]
[1741289283037,8.0193577,143.21,143.15,0.03]
[1741289283038,18.45948114,143.17,143.15,0.03]
[1741289284349,26.91910755,143.2,143.15,0.03]
[1741289284551,18.45948114,143.19,143.16,0.14216157]
[1741289285256,25.44318114,143.19,143.16,0.17216157]
[1741289285760,18.45948114,143.19,143.16,0.17216157]
[1741289286456,6.9822,143.22,143.16,0.17216157]
[1741289286657,6.9822,143.22,143.16,89.25726157]
[1741289286837,18.45948114,143.21,143.16,89.25726157]
[1741289287160,18.45948114,143.2,143.16,82.27216157]
[1741289287355,18.45948114,143.19,143.16,82.27216157]
[1741289287567,18.45948114,143.18,143.16,82.27216157]
[1741289287755,18.45948114,143.17,143.16,0.03]
[1741289289082,25.44418114,143.17,143.16,0.03]
[1741289295868,18.45948114,143.18,143.16,0.03]
[1741289296067,25.44378114,143.18,143.16,0.03]
[1741289296659,18.45948114,143.17,143.16,0.03]
[1741289296867,25.44378114,143.18,143.16,0.03]
[1741289297057,25.44368114,143.18,143.16,0.03]
[1741289297368,18.45948114,143.17,143.16,0.03]
[1741289297565,18.45948114,143.17,143.16,0.17216157]
[1741289298077,25.44418114,143.17,143.16,0.17216157]
[1741289298881,18.45948114,143.17,143.16,0.17216157]
[1741289299258,18.45948114,143.18,143.16,0.17216157]
[1741289300660,18.45948114,143.17,143.16,0.03]
[1741289300867,18.45948114,143.18,143.16,0.03]
[1741289301087,18.45948114,143.17,143.16,0.03]
[1741289303784,18.45948114,143.17,143.16,312.17216157]
[1741289304481,18.45948114,143.18,143.16,312.17216157]
[1741289304869,18.45948114,143.17,143.16,312.17216157]
[1741289305977,18.45948114,143.18,143.16,312.17216157]
[1741289306779,25.44378114,143.18,143.16,0.17216157]
[1741289307281,18.45948114,143.18,143.16,0.17216157]
[1741289307990,18.45948114,143.17,143.16,0.17216157]
[1741289309665,18.45948114,143.18,143.16,312.17216157]
[1741289309882,6.4625,143.21,143.16,312.17216157]
[1741289310066,13.4454,143.21,143.17,0.14216157]
[1741289310266,18.45948114,143.19,143.17,0.14216157]
[1741289310472,18.45948114,143.2,143.17,0.14216157]
[1741289310693,18.45948114,143.19,143.17,0.14216157]
[1741289310983,18.45948114,143.18,143.17,0.14216157]
[1741289311171,25.44368114,143.18,143.17,0.14216157]
[1741289311576,25.44368114,143.18,143.16,0.03]
[1741289311780,18.45948114,143.17,143.16,0.03]
[1741289313297,25.44418114,143.17,143.16,0.03]
[1741289313490,18.45948114,143.17,143.16,0.03]
[1741289314094,25.44418114,143.17,143.16,0.03]
[1741289314392,101.29044814,143.21,143.16,0.03]
[1741289314589,18.45948114,143.18,143.17,0.14216157]
[1741289315596,25.44368114,143.18,143.17,0.14216157]
[1741289315896,18.45948114,143.18,143.17,0.14216157]
[1741289316194,25.44368114,143.18,143.17,0.14216157]
[1741289316497,18.45948114,143.18,143.17,0.14216157]
[1741289318092,18.45948114,143.2,143.17,0.14216157]
[1741289318394,18.45948114,143.21,143.17,7.12676157]
[1741289318970,25.44188114,143.22,143.17,7.12676157]
[1741289319170,18.45948114,143.21,143.17,7.12676157]
[1741289319388,6.9824,143.22,143.17,0.14216157]
[1741289319389,18.45948114,143.2,143.17,0.14216157]
[1741289320298,25.44228114,143.21,143.17,0.14216157]
[1741289320493,18.45948114,143.2,143.17,0.14216157]
[1741289321200,7.0149,143.23,143.17,7.12666157]
[1741289321377,18.45948114,143.22,143.17,319.12666157]
[1741289321778,18.49248114,143.23,143.17,25.58614271]
[1741289321981,18.49248114,143.23,143.17,107.68614271]
[1741289322179,25.47418114,143.23,143.17,107.68614271]
[1741289322597,18.49248114,143.23,143.17,107.68614271]
[1741289322791,0.033,143.21,143.17,107.68614271]
[1741289323703,0.033,143.21,143.19,0.14216157]
[1741289324513,0.033,143.21,143.19,7.12556157]
[1741289324803,0.033,143.21,143.2,312.14216157]
[1741289326087,18.49248114,143.21,143.19,82.1]
[1741289326285,18.49248114,143.21,143.2,0.14216157]
[1741289326483,0.033,143.21,143.2,0.14216157]
[1741289327203,0.033,143.21,143.19,0.14216157]
[1741289327924,18.49248114,143.21,143.17,0.14216157]
[1741289328217,18.49248114,143.21,143.17,82.24216157]
[1741289328597,25.44268114,143.2,143.16,0.03]
[1741289328799,25.44268114,143.2,143.16,0.17216157]
[1741289329116,25.44268114,143.2,143.16,319.15726157]
[1741289329305,18.45948114,143.2,143.16,312.17216157]
[1741289329516,0.033,143.21,143.16,337.61674271]
[1741289330021,0.033,143.21,143.16,25.61674271]
[1741289330823,0.033,143.21,143.16,7.15726157]
[1741289331021,0.033,143.21,143.16,25.61674271]
[1741289331534,18.49248114,143.21,143.16,0.17216157]
[1741289331816,18.45948114,143.2,143.16,0.17216157]
[1741289331996,18.45948114,143.2,143.16,7.15726157]
[1741289332401,18.45948114,143.19,143.16,0.17216157]
[1741289332799,25.44338114,143.19,143.16,312.17216157]
[1741289334212,18.45948114,143.19,143.16,312.17216157]
[1741289334709,25.44318114,143.19,143.16,312.17216157]
[1741289335027,18.45948114,143.19,143.16,312.17216157]
[1741289336619,18.45948114,143.18,143.16,0.17216157]
[1741289336808,18.45948114,143.18,143.16,0.03]
[1741289337126,6.9834,143.2,143.16,0.03]
[1741289337331,18.45948114,143.19,143.16,0.03]
[1741289338140,18.45948114,143.18,143.16,0.03]
[1741289338720,25.44398114,143.18,143.16,0.03]
[1741289339110,6.9845,143.18,143.16,0.03]
[1741289339731,18.45948114,143.19,143.16,0.03]
[1741289339732,18.45948114,143.19,143.17,0.14216157]
[1741289341231,25.44318114,143.19,143.17,0.14216157]
[1741289341430,18.45948114,143.18,143.17,0.14216157]
[1741289341842,18.45948114,143.18,143.16,0.03]
[1741289342142,18.45948114,143.17,143.16,0.03]
[1741289342435,18.45948114,143.18,143.16,0.03]
[1741289342633,11.83446456,143.18,143.16,0.03]
[1741289343131,6.9834,143.2,143.17,0.14216157]
[1741289343333,11.83446456,143.19,143.17,0.14216157]
[1741289343637,82.033,143.21,143.17,0.14216157]
[1741289343813,0.033,143.21,143.17,82.24216157]
[1741289344020,0.033,143.21,143.17,94.07662613]
[1741289344835,0.033,143.21,143.2,0.14216157]
[1741289345425,0.033,143.21,143.18,0.14216157]
[1741289345824,0.033,143.21,143.2,0.14216157]
[1741289346535,0.033,143.21,143.19,0.14216157]
[1741289346915,0.033,143.21,143.17,88.56]
[1741289347238,18.50917774,143.21,143.18,0.14216157]
[1741289347425,0.033,143.21,143.18,0.14216157]
[1741289348220,0.033,143.21,143.18,312.14216157]
[1741289348421,0.033,143.21,143.18,319.12606157]
[1741289348835,0.033,143.21,143.18,7.12606157]
[1741289349039,0.033,143.21,143.18,0.14216157]
[1741289349341,7.0158,143.21,143.18,0.14216157]
[1741289349642,0.033,143.21,143.18,0.14216157]
[1741289350019,0.033,143.21,143.18,7.12636157]
[1741289350424,0.033,143.21,143.18,89.22636157]
[1741289350621,0.033,143.21,143.18,107.70253931]
[1741289351237,0.033,143.21,143.2,18.61833931]
[1741289351444,0.033,143.21,143.2,100.71833931]
[1741289351647,0.033,143.21,143.2,107.70153931]
[1741289351938,0.033,143.21,143.2,394.24216157]
[1741289352135,0.033,143.21,143.2,401.22536157]
[1741289352336,0.033,143.21,143.2,419.70153931]
[1741289353345,0.033,143.21,143.2,401.22536157]
[1741289356337,0.033,143.21,143.2,394.24216157]
[1741289360748,0.033,143.21,143.2,401.22536157]
[1741289361255,0.033,143.21,143.2,419.70153931]
[1741289362234,0.033,143.21,143.2,545.88586245]
[1741289366561,0.033,143.21,143.2,539.22815302]
[1741289370047,0.033,143.23,143.22,20.14216157]
[1741289370250,0.033,143.23,143.22,247.59575841]
[1741289370560,0.033,143.23,143.22,246.42062988]
[1741289371960,0.0001,143.23,143.22,253.68715302]
[1741289372158,0.033,143.24,143.22,253.68715302]
[1741289372159,0.033,143.25,143.23,2.02338471]
[1741289372470,0.033,143.25,143.24,13.41915908]
[1741289373045,0.0001,143.25,143.24,13.41915908]
[1741289373460,0.0001,143.25,143.24,325.41915908]
[1741289373775,0.0001,143.25,143.24,324.24495302]
[1741289373966,0.0001,143.25,143.24,331.22615302]
[1741289374770,0.0001,143.25,143.24,520.0]
[1741289374979,0.0001,143.25,143.24,520.14216157]
[1741289377050,0.0001,143.25,143.24,545.58803486]
[1741289377565,0.0001,143.25,143.24,233.58803486]
[1741289378343,0.0001,143.25,143.24,233.872358]
[1741289379773,0.0001,143.25,143.24,215.40768471]
[1741289379973,0.0001,143.25,143.24,233.872358]
[1741289380160,0.0001,143.25,143.24,89.22336157]
[1741289380657,0.0001,143.25,143.24,401.22336157]
[1741289381458,0.0001,143.25,143.24,419.68803486]
[1741289381654,0.0001,143.25,143.24,107.972358]
[1741289381861,0.0001,143.25,143.24,109.14696254]
[1741289382244,0.0001,143.25,143.24,107.972358]
[1741289383461,0.0001,143.25,143.24,89.50768471]
[1741289383674,0.0001,143.25,143.24,82.24216157]
[1741289384068,0.0001,143.25,143.24,89.22336157]
[1741289384770,0.0001,143.25,143.24,401.22336157]
[1741289385474,0.0001,143.25,143.24,419.972358]
[1741289385976,0.0001,143.25,143.24,401.50768471]
[1741289386177,0.0001,143.25,143.24,527.40768471]
[1741289386355,0.0001,143.25,143.24,545.872358]
[1741289394493,0.0001,143.25,143.24,520.42648471]
[1741289394996,0.0001,143.25,143.24,527.40768471]
[1741289395381,0.0001,143.25,143.24,545.872358]
[1741289396673,0.0001,143.25,143.24,520.42648471]
[1741289396873,0.0001,143.25,143.24,394.1]
[1741289397205,0.0001,143.25,143.24,82.1]
[1741289397372,0.0001,143.25,143.24,82.24216157]
[1741289397694,0.0001,143.25,143.24,82.1]
[1741289398198,0.0001,143.25,143.24,82.24216157]
[1741289399172,0.0001,143.25,143.24,227.22821884]
[1741289399999,0.0001,143.25,143.24,539.22821884]
[1741289400379,0.0001,143.25,143.24,520.42648471]
[1741289400576,0.0001,143.25,143.24,545.86942748]
[1741289401197,0.0001,143.25,143.24,545.58510434]
[1741289401396,0.0001,143.25,143.24,520.14216157]
[1741289401583,0.0001,143.25,143.24,520.0]
[1741289401786,0.0001,143.25,143.24,527.12336157]
[1741289401993,0.0001,143.25,143.24,520.14216157]
[1741289402808,26.41364277,143.25,143.22,82.1]
[1741289402979,18.46174277,143.24,143.22,82.1]
[1741289403385,18.46174277,143.24,143.23,0.14216157]
[1741289404101,26.41364277,143.25,143.23,0.14216157]
[1741289405316,33.39474277,143.25,143.23,0.14216157]
[1741289405478,26.41364277,143.25,143.23,0.14216157]
[1741289405667,18.46174277,143.24,143.23,0.14216157]
[1741289405872,18.46174277,143.24,143.2,312.0]
[1741289406101,7.9519,143.25,143.21,0.14216157]
[1741289406814,26.41364277,143.25,143.22,0.03]
[1741289406980,18.46174277,143.24,143.22,0.03]
[1741289407310,26.41364277,143.25,143.22,0.03]
[1741289408909,0.0001,143.25,143.24,7.12336157]
[1741289409334,0.0001,143.25,143.24,89.22336157]
[1741289409833,0.0001,143.25,143.24,233.86942748]
[1741289410600,0.0001,143.25,143.24,235.86942748]
[1741289410801,0.0001,143.25,143.24,545.86942748]
[1741289411428,0.0001,143.25,143.24,527.40768471]
[1741289411742,0.0001,143.25,143.24,545.86942748]
[1741289412610,0.0001,143.25,143.24,520.14216157]
[1741289412936,0.0001,143.25,143.24,527.12336157]
[1741289414138,0.0001,143.25,143.24,545.86942748]
[1741289415210,0.0001,143.25,143.24,547.45722748]
[1741289416223,0.0001,143.25,143.24,545.72726591]
[1741289416414,0.0001,143.25,143.24,527.26552314]
[1741289416830,0.0001,143.25,143.24,527.40768471]
[1741289417031,0.0001,143.25,143.24,394.24216157]
[1741289417341,18.46184277,143.25,143.24,82.1]
[1741289417515,18.46184277,143.25,143.22,82.13]
[1741289417717,18.46174277,143.24,143.23,0.14216157]
[1741289418025,18.46174277,143.24,143.22,0.03]
[1741289418332,25.44344277,143.23,143.22,0.03]
[1741289418529,31.48634277,143.23,143.22,0.03]
[1741289420322,24.50464277,143.23,143.22,0.03]